bitfinex-derivatives/quotes_BTCF0:USTF0_20250320
["timestamp","ask_amount","ask_price","bid_price","bid_amount"]
[1742499174341,0.2085371,84207.0,84206.0,0.1188252]
[1742499174545,0.0306,84208.0,84207.0,0.1188238]
[1742499174740,0.00011803,84215.0,84214.0,0.1188139]
[1742499174951,0.00011803,84215.0,84214.0,0.1511139]
[1742499175151,0.11893053,84215.0,84214.0,0.1511139]
[1742499175648,0.18013053,84215.0,84214.0,0.19072255]
[1742499176750,0.00011803,84215.0,84214.0,0.19072255]
[1742499176954,0.00011803,84215.0,84214.0,0.30644255]
[1742499177446,0.00111803,84215.0,84214.0,0.30644255]
[1742499177844,0.12093053,84215.0,84214.0,0.30644255]
[1742499178254,0.00211803,84215.0,84214.0,0.30644255]
[1742499178456,0.0594007,84223.0,84222.0,0.1188026]
[1742499178751,0.0594007,84223.0,84222.0,0.2345226]
[1742499179255,0.0594007,84223.0,84222.0,0.2967226]
[1742499179643,0.0593999,84225.0,84222.0,0.2967226]
[1742499179849,0.064,84224.0,84222.0,0.2967226]
[1742499180055,0.0593809,84251.0,84223.0,1.22368]
[1742499180355,0.0593762,84258.0,84223.0,1.22368]
[1742499180356,0.1781694,84242.0,84241.0,0.1781539]
[1742499181452,0.0593893,84242.0,84241.0,0.1781539]
[1742499184351,0.06912427,84242.0,84241.0,0.1781539]
[1742499184761,0.0593893,84242.0,84241.0,0.1781539]
[1742499184955,0.1187773,84240.0,84239.0,0.059389]
[1742499185553,0.1824773,84240.0,84239.0,0.059389]
[1742499186956,0.1187857,84234.0,84233.0,0.1189621]
[1742499187552,0.1188041,84221.0,84220.0,0.3608]
[1742499187758,0.1188041,84221.0,84220.0,0.1188055]
[1742499188655,0.1518041,84221.0,84220.0,0.1188055]
[1742499188857,0.1843041,84221.0,84220.0,0.1188055]
[1742499189261,0.19403497,84221.0,84220.0,0.1188055]
[1742499190064,0.19403497,84221.0,84220.0,0.1512055]
[1742499190461,0.1843041,84221.0,84220.0,0.1512055]
[1742499190659,0.19402288,84221.0,84220.0,0.1512055]
[1742499191358,0.1843041,84221.0,84220.0,0.1512055]
[1742499192262,0.19401447,84221.0,84220.0,0.1512055]
[1742499192663,0.19401477,84221.0,84220.0,0.1512055]
[1742499193571,0.19401477,84221.0,84220.0,0.1188055]
[1742499194466,0.19401477,84221.0,84220.0,0.1503055]
[1742499194661,0.19407547,84221.0,84220.0,0.1503055]
[1742499195365,0.1188153,84213.0,84212.0,0.1189906]
[1742499195566,0.12858667,84213.0,84212.0,0.1189906]
[1742499195770,0.19228667,84213.0,84212.0,0.1189906]
[1742499196369,0.1825153,84213.0,84212.0,0.1783975]
[1742499196666,0.1825153,84213.0,84212.0,0.2398046]
[1742499196863,0.1825153,84213.0,84212.0,0.2418046]
[1742499197163,0.1188055,84220.0,84219.0,0.1188055]
[1742499197362,0.1512055,84220.0,84219.0,0.1188055]
[1742499198369,0.1841055,84220.0,84219.0,0.1489055]
[1742499199568,0.1841055,84220.0,84219.0,0.1810055]
[1742499201273,0.19390095,84220.0,84219.0,0.1810055]
[1742499201673,0.19390095,84220.0,84214.0,0.00884197]
[1742499201868,0.1188125,84215.0,84214.0,0.0594064]
[1742499202065,0.12860795,84215.0,84214.0,0.0594064]
[1742499202261,0.16000795,84215.0,84214.0,0.0594064]
[1742499202464,0.16979012,84215.0,84214.0,0.0906064]
[1742499202881,0.16994368,84215.0,84214.0,0.0926064]
[1742499203073,0.20074368,84215.0,84214.0,0.1242064]
[1742499203272,0.20074368,84215.0,84214.0,0.1262064]
[1742499203962,0.05113118,84215.0,84214.0,0.13504321]
[1742499204163,0.01973118,84215.0,84214.0,0.13504321]
[1742499204367,0.01973118,84215.0,84214.0,0.13304321]
[1742499204571,0.01973118,84215.0,84214.0,0.13504321]
[1742499204780,0.01977609,84215.0,84214.0,0.13504321]
[1742499206076,0.13858859,84215.0,84214.0,0.13504321]
[1742499206472,0.20368859,84215.0,84214.0,0.13504321]
[1742499206880,0.20369671,84215.0,84214.0,0.13504321]
[1742499207984,0.01978421,84215.0,84214.0,0.13504321]
[1742499209183,0.01979965,84215.0,84214.0,0.13504321]
[1742499210577,0.0593903,84238.0,84228.0,0.1187942]
[1742499210778,0.1187921,84230.0,84228.0,0.1187942]
[1742499210984,0.06207774,84229.0,84228.0,0.1813942]
[1742499212384,0.06207774,84229.0,84228.0,0.19497429]
[1742499215489,0.03167774,84229.0,84228.0,0.19497429]
[1742499216580,0.0328,84239.0,84238.0,0.1187801]
[1742499217090,0.0301,84244.0,84242.0,0.0593872]
[1742499217286,0.0301,84244.0,84243.0,0.151373]
[1742499217684,0.36244001,84253.0,84252.0,0.1187603]
[1742499217893,0.059372,84264.0,84252.0,0.1187603]
[1742499217894,0.1187574,84255.0,84254.0,0.1187575]
[1742499218385,0.1505574,84255.0,84254.0,0.1187575]
[1742499218886,0.1807574,84255.0,84254.0,0.1187575]
[1742499219689,0.1187325,84272.0,84271.0,0.1187322]
[1742499219991,0.1819322,84272.0,84271.0,0.1187322]
[1742499220193,0.1819322,84272.0,84271.0,0.1518322]
[1742499220882,0.1819322,84272.0,84265.0,0.3608]
[1742499220883,0.1187406,84266.0,84265.0,0.5389095]
[1742499221987,0.1187434,84264.0,84258.0,0.0593757]
[1742499222188,0.1187434,84264.0,84260.0,0.1187486]
[1742499222489,0.0593766,84258.0,84255.0,0.1781311]
[1742499222789,0.1187547,84256.0,84255.0,0.2375084]
[1742499223181,0.1804547,84256.0,84255.0,0.2375084]
[1742499223587,0.1804547,84256.0,84255.0,0.1187551]
[1742499227097,0.1781376,84254.0,84253.0,0.1187579]
[1742499227293,0.1781441,84252.0,84251.0,0.1187612]
[1742499227997,0.2405441,84252.0,84251.0,0.1187612]
[1742499228192,0.0593823,84250.0,84247.0,0.000178]
[1742499228498,0.0593823,84250.0,84238.0,0.1187795]
[1742499228499,0.1781694,84239.0,84238.0,0.1187795]
[1742499228894,0.1781694,84239.0,84238.0,0.12775278]
[1742499229296,0.1781694,84239.0,84238.0,0.14112031]
[1742499230006,0.1781694,84239.0,84238.0,0.17342031]
[1742499230200,0.1781694,84239.0,84238.0,0.20572031]
[1742499230795,0.1781694,84239.0,84238.0,0.20672031]
[1742499231199,0.1781694,84239.0,84238.0,0.20772031]
[1742499235895,0.1781694,84239.0,84238.0,0.002]
[1742499236604,0.1781694,84239.0,84238.0,0.1207801]
[1742499237092,0.1781694,84239.0,84238.0,0.19839336]
[1742499237997,0.1781694,84239.0,84238.0,0.1526801]
[1742499239107,0.1781694,84239.0,84238.0,0.002]
[1742499240008,0.0593933,84234.0,84223.0,0.0594003]
[1742499240199,0.4795899,84231.0,84224.0,0.033]
[1742499240396,0.4795899,84231.0,84228.0,0.1187936]
[1742499240602,0.2146899,84231.0,84230.0,0.1324387]
[1742499240900,0.0328,84231.0,84230.0,0.1324387]
[1742499241304,0.1515899,84231.0,84230.0,0.2001387]
[1742499241606,0.11564,84233.0,84232.0,0.1187885]
[1742499241809,0.1187864,84234.0,84233.0,0.1187871]
[1742499242310,0.0659,84236.0,84235.0,0.1187843]
[1742499242703,0.0659,84236.0,84235.0,0.1833843]
[1742499243615,0.01354553,84247.0,84235.0,0.1833843]
[1742499243616,0.0593849,84246.0,84245.0,0.059385]
[1742499243800,0.0916849,84246.0,84245.0,0.059385]
[1742499244000,0.0651,84246.0,84245.0,0.059385]
[1742499244213,0.1838688,84246.0,84245.0,0.059385]
[1742499244406,0.1838688,84246.0,84245.0,0.123985]
[1742499245014,0.1848688,84246.0,84245.0,0.123985]
[1742499245516,0.1848688,84246.0,84245.0,0.13724461]
[1742499248214,0.1197688,84246.0,84245.0,0.13724461]
[1742499248419,0.1528688,84246.0,84245.0,0.13724461]
[1742499248616,0.001,84246.0,84245.0,0.13724461]
[1742499249012,0.1197688,84246.0,84245.0,0.13724461]
[1742499249211,0.001,84246.0,84245.0,0.13724461]
[1742499249720,0.1197688,84246.0,84245.0,0.13724461]
[1742499250518,0.001,84246.0,84245.0,0.13724461]
[1742499250716,0.1197688,84246.0,84245.0,0.13724461]
[1742499251116,0.001,84246.0,84245.0,0.13724461]
[1742499251518,0.1197688,84246.0,84245.0,0.13724461]
[1742499252120,0.1837688,84246.0,84245.0,0.13724461]
[1742499254325,0.1837688,84246.0,84245.0,0.1504702]
[1742499254530,0.1837688,84246.0,84245.0,0.1187702]
[1742499257332,0.1837688,84246.0,84245.0,0.1489702]
[1742499257535,0.1837688,84246.0,84245.0,0.1187702]
[1742499257735,0.2994088,84246.0,84245.0,0.1187702]
[1742499259022,0.1187744,84242.0,84241.0,0.1489758]
[1742499259326,0.1187744,84242.0,84241.0,0.1187758]
[1742499259526,0.2147744,84242.0,84241.0,0.1187758]
[1742499260730,0.2147744,84242.0,84241.0,0.1197758]
[1742499263440,0.0593943,84232.0,84230.0,0.000178]
[1742499263739,0.9348899,84231.0,84230.0,0.1189694]
[1742499264040,0.1187956,84227.0,84226.0,0.0315]
[1742499264237,0.1188012,84223.0,84222.0,0.032]
[1742499264534,0.1188026,84222.0,84221.0,0.21146755]
[1742499264739,0.1817026,84222.0,84221.0,0.33027165]
[1742499264924,0.1817026,84222.0,84221.0,0.34318062]
[1742499265124,0.1817026,84222.0,84221.0,0.40668062]
[1742499265737,0.1817026,84222.0,84221.0,0.40768062]
[1742499265938,0.1817026,84222.0,84221.0,0.19621307]
[1742499267124,0.1817026,84222.0,84221.0,0.19721307]
[1742499275436,0.1817026,84222.0,84221.0,0.22921307]
[1742499280850,0.1188264,84208.0,84207.0,0.1188161]
[1742499281047,0.4796264,84208.0,84207.0,0.1188161]
[1742499282453,0.4796264,84208.0,84207.0,0.1847161]
[1742499282651,0.4796264,84208.0,84207.0,0.19780638]
[1742499283156,0.4796264,84208.0,84207.0,0.09679618]
[1742499283950,0.4796264,84208.0,84207.0,0.21561998]
[1742499284652,0.5447264,84208.0,84207.0,0.21561998]
[1742499288947,0.4853124,84208.0,84207.0,0.21561998]
[1742499289152,0.3608,84208.0,84207.0,0.21561998]
[1742499300375,0.4796224,84208.0,84207.0,0.18241998]
[1742499300560,0.4796224,84208.0,84207.0,0.1278238]
[1742499300768,0.5430224,84208.0,84207.0,0.1278238]
[1742499301180,0.5430224,84208.0,84207.0,0.1604238]
[1742499303678,0.4242,84208.0,84207.0,0.19921949]
[1742499303976,0.5430224,84208.0,84207.0,0.19921949]
[1742499304172,0.4242,84208.0,84207.0,0.19921949]
[1742499304370,0.5430224,84208.0,84207.0,0.19921949]
[1742499304575,0.4242,84208.0,84207.0,0.19921949]
[1742499305272,0.5430224,84208.0,84207.0,0.19921949]
[1742499307081,0.4242,84208.0,84207.0,0.19921949]
[1742499309068,0.3608,84223.0,84222.0,0.1188026]
[1742499309275,0.032,84223.0,84222.0,0.1188026]
[1742499309475,0.0309,84229.0,84228.0,0.1187942]
[1742499309672,0.0629,84229.0,84228.0,0.1508942]
[1742499310181,0.032,84229.0,84228.0,0.1508942]
[1742499310478,0.0309,84235.0,84229.0,0.1187928]
[1742499310674,0.032,84240.0,84239.0,0.1187787]
[1742499310869,0.0629,84240.0,84239.0,0.1187787]
[1742499311077,0.0309,84240.0,84239.0,0.1187787]
[1742499311670,0.0629,84240.0,84239.0,0.1187787]
[1742499311878,0.0649,84240.0,84239.0,0.1187787]
[1742499313078,0.0669,84240.0,84239.0,0.1187787]
[1742499316783,0.0001781,84248.0,84247.0,0.1187674]
[1742499317577,0.0321781,84248.0,84247.0,0.1187674]
[1742499318080,0.0361781,84248.0,84247.0,0.1187674]
[1742499320083,0.1549441,84248.0,84247.0,0.1187674]
[1742499320285,0.0361781,84248.0,84247.0,0.1187674]
[1742499320492,0.0683781,84248.0,84247.0,0.1187674]
[1742499322994,0.1871441,84248.0,84247.0,0.1187674]
[1742499324594,0.0683781,84248.0,84247.0,0.3787674]
[1742499324893,0.0683781,84248.0,84247.0,0.4099674]
[1742499325896,0.0361781,84248.0,84247.0,0.4099674]
[1742499326089,0.0361781,84248.0,84247.0,0.4409674]
[1742499328888,0.0361781,84248.0,84247.0,0.8017674]
[1742499329089,0.3608,84270.0,84255.0,0.0593775]
[1742499329388,0.0312,84258.0,84256.0,0.2073373]
[1742499329585,0.0306,84257.0,84256.0,0.326092]
[1742499329984,0.0316,84269.0,84267.0,0.1781073]
[1742499330189,0.1503364,84269.0,84268.0,0.1511378]
[1742499330591,0.1503364,84269.0,84268.0,0.16434583]
[1742499330797,0.1503364,84269.0,84268.0,0.19764583]
[1742499331791,0.1513364,84269.0,84268.0,0.19764583]
[1742499333088,0.2169364,84269.0,84268.0,0.19764583]
[1742499333289,0.2159364,84269.0,84268.0,0.19764583]
[1742499334700,0.0972,84269.0,84268.0,0.20658609]
[1742499335688,0.00164001,84297.0,84268.0,0.56420829]
[1742499335888,0.1780595,84293.0,84292.0,0.0593509]
[1742499336496,0.19111514,84293.0,84292.0,0.0593509]
[1742499336700,0.1780595,84293.0,84292.0,0.0593509]
[1742499337001,0.1780595,84293.0,84292.0,0.0653509]
[1742499337799,0.1780595,84293.0,84292.0,0.0713509]
[1742499338098,0.2393595,84293.0,84292.0,0.0713509]
[1742499341399,0.0613,84293.0,84292.0,0.0713509]
[1742499341600,0.0613,84293.0,84292.0,0.1267509]
[1742499341806,0.1800026,84293.0,84292.0,0.1267509]
[1742499342409,0.1800026,84293.0,84292.0,0.0959509]
[1742499342794,0.1800026,84293.0,84292.0,0.0653509]
[1742499343206,0.1800026,84293.0,84292.0,0.0593509]
[1742499343505,0.1800026,84293.0,84292.0,0.0922509]
[1742499344204,0.1800026,84293.0,84292.0,0.1227509]
[1742499344610,0.1800026,84293.0,84292.0,0.0922509]
[1742499346298,0.1800026,84293.0,84292.0,0.1245509]
[1742499350512,0.0593555,84288.0,84271.0,0.21146755]
[1742499350702,0.0641,84287.0,84286.0,0.1230562]
[1742499351305,0.2421679,84287.0,84286.0,0.1230562]
[1742499352107,0.2421679,84287.0,84286.0,0.0637]
[1742499352514,0.2421679,84287.0,84286.0,0.0329]
[1742499353313,0.2421679,84287.0,84286.0,0.0339]
[1742499353516,0.2421679,84287.0,84286.0,0.0349]
[1742499354323,0.1187138,84285.0,84284.0,1e-07]
[1742499354724,0.2127138,84285.0,84284.0,1e-07]
[1742499355426,0.2127138,84285.0,84284.0,0.0020001]
[1742499356234,0.2127138,84285.0,84284.0,1e-07]
[1742499357231,0.2127138,84285.0,84284.0,0.0020001]
[1742499357621,0.2127138,84285.0,84284.0,1e-07]
[1742499357825,0.2137138,84285.0,84284.0,1e-07]
[1742499360521,0.2127138,84285.0,84284.0,1e-07]
[1742499361630,0.1509138,84285.0,84284.0,0.1187153]
[1742499361834,0.2664338,84285.0,84284.0,1e-07]
[1742499362028,0.2971338,84285.0,84284.0,1e-07]
[1742499362230,0.1816138,84285.0,84284.0,0.1187153]
[1742499362429,0.1816138,84285.0,84284.0,0.1851153]
[1742499362734,0.1816138,84285.0,84284.0,0.0664001]
[1742499365541,0.1816138,84285.0,84284.0,1e-07]
[1742499371240,0.1816138,84285.0,84269.0,0.0315]
[1742499371241,0.1187561,84255.0,84252.0,0.00888098]
[1742499371543,0.1187505,84260.0,84259.0,0.1187505]
[1742499372533,0.1187505,84260.0,84259.0,0.2153505]
[1742499372929,0.1781212,84262.0,84261.0,0.1187477]
[1742499373328,0.1781212,84262.0,84261.0,0.1801477]
[1742499374046,0.0593737,84262.0,84261.0,0.1801477]
[1742499374449,0.0593737,84262.0,84261.0,0.1811477]
[1742499375144,0.0593737,84262.0,84261.0,0.1821477]
[1742499380545,0.0593737,84262.0,84261.0,0.0634]
[1742499380850,0.0919737,84262.0,84261.0,0.0634]
[1742499381437,0.0919737,84262.0,84261.0,0.1821477]
[1742499381648,0.3608,84263.0,84261.0,0.1227737]
[1742499381848,0.4795462,84263.0,84262.0,0.1187462]
[1742499382244,0.1187431,84265.0,84264.0,0.1187434]
[1742499382647,0.1187431,84265.0,84264.0,0.1807434]
[1742499385353,0.000178,84268.0,84267.0,0.1187392]
[1742499385551,0.000178,84268.0,84267.0,0.1828392]
[1742499386648,0.001178,84268.0,84267.0,0.1828392]
[1742499387253,0.002178,84268.0,84267.0,0.1828392]
[1742499388054,0.0922569,84285.0,84284.0,0.1187152]
[1742499388456,0.0922569,84285.0,84284.0,0.2126152]
[1742499389156,0.1223569,84285.0,84284.0,0.2126152]
[1742499389458,0.1233569,84285.0,84284.0,0.1818152]
[1742499390955,0.1253569,84285.0,84284.0,0.1818152]
[1742499397260,0.0623569,84285.0,84284.0,0.1818152]
[1742499398169,0.0942569,84285.0,84284.0,0.1818152]
[1742499398568,0.1250569,84285.0,84284.0,0.1818152]
[1742499398765,0.1571569,84285.0,84284.0,0.1818152]
[1742499400572,0.0623569,84285.0,84284.0,0.1818152]
[1742499400962,0.0951569,84285.0,84284.0,0.1818152]
[1742499402079,0.1260569,84285.0,84284.0,0.1818152]
[1742499410289,0.1260569,84285.0,84284.0,0.0329]
[1742499412091,0.1260569,84285.0,84284.0,0.1516152]
[1742499412996,0.1260569,84285.0,84284.0,0.1841152]
[1742499414795,0.1160569,84285.0,84284.0,0.1841152]
[1742499419595,0.0358,84285.0,84284.0,0.1841152]
[1742499419894,0.50896001,84291.0,84284.0,0.1841152]
[1742499419895,0.00172001,84291.0,84290.0,0.1187068]
[1742499420095,0.0325,84292.0,84291.0,0.1187054]
[1742499420595,0.0325,84292.0,84291.0,0.2144054]
[1742499420799,0.0325,84292.0,84291.0,0.2272289]
[1742499422193,0.36097744,84293.0,84292.0,0.118704]
[1742499422393,0.36097744,84293.0,84292.0,0.181104]
[1742499422600,0.36097744,84293.0,84292.0,0.19574581]
[1742499422997,0.36097744,84293.0,84292.0,0.32031209]
[1742499423690,0.36097744,84293.0,84292.0,0.30567028]
[1742499424496,0.36197744,84293.0,84292.0,0.30567028]
[1742499424696,0.36197744,84293.0,84292.0,0.32031031]
[1742499425700,0.36197744,84293.0,84292.0,0.30567028]
[1742499433301,0.00117744,84293.0,84292.0,0.66647028]
[1742499433597,0.1186798,84314.0,84302.0,0.0593448]
[1742499433800,0.1186798,84314.0,84311.0,0.1186758]
[1742499433801,0.0593403,84312.0,84311.0,0.1186758]
[1742499434101,0.1780209,84312.0,84311.0,0.1505758]
[1742499434403,0.2082209,84312.0,84311.0,0.1505758]
[1742499434989,0.1186871,84304.0,84303.0,0.000178]
[1742499435289,0.5949271,84304.0,84303.0,0.000178]
[1742499435493,0.5949271,84304.0,84303.0,0.1188665]
[1742499435688,0.6570271,84304.0,84303.0,0.1188665]
[1742499436301,0.6570271,84304.0,84303.0,0.1510665]
[1742499436700,0.6570271,84304.0,84303.0,0.1814665]
[1742499437504,0.6570271,84304.0,84303.0,0.1510665]
[1742499437893,0.5415871,84304.0,84303.0,0.1510665]
[1742499438098,0.4229,84304.0,84303.0,0.1833665]
[1742499438896,0.5415871,84304.0,84303.0,0.1833665]
[1742499439099,0.4229,84304.0,84303.0,0.1833665]
[1742499439901,0.5415871,84304.0,84303.0,0.1833665]
[1742499441597,0.5415871,84304.0,84303.0,0.000178]
[1742499441998,0.5415871,84304.0,84303.0,0.1188665]
[1742499442508,0.5415871,84304.0,84303.0,0.1817665]
[1742499442707,0.5415871,84304.0,84303.0,0.1510665]
[1742499443107,0.5415871,84304.0,84303.0,0.032378]
[1742499443311,0.5415871,84304.0,84303.0,0.000178]
[1742499443312,0.6569871,84304.0,84303.0,0.000178]
[1742499443729,0.1780658,84288.0,84287.0,0.1780593]
[1742499444011,0.5388658,84288.0,84287.0,0.2094593]
[1742499444809,0.6012658,84288.0,84287.0,0.2134593]
[1742499445011,0.6012658,84288.0,84287.0,0.2728146]
[1742499445399,0.6012658,84288.0,84287.0,0.2778146]
[1742499446408,0.6012658,84288.0,84287.0,0.159111]
[1742499447302,0.6012658,84288.0,84287.0,0.189111]
[1742499448198,0.6012658,84288.0,84287.0,0.009]
[1742499448402,0.6012658,84288.0,84287.0,0.127711]
[1742499448603,0.6012658,84288.0,84287.0,0.009]
[1742499449305,0.6012658,84288.0,84287.0,0.118711]
[1742499449800,0.9620658,84288.0,84287.0,0.118711]
[1742499450713,0.9620658,84288.0,84279.0,0.1188961]
[1742499450714,0.1187209,84280.0,84279.0,0.1188961]
[1742499451009,0.4795209,84280.0,84279.0,0.1782562]
[1742499451225,0.5749209,84280.0,84279.0,0.1782562]
[1742499451412,0.4562,84280.0,84279.0,0.1782562]
[1742499451708,0.3911,84280.0,84279.0,0.1802562]
[1742499452108,0.5098209,84280.0,84279.0,0.1822562]
[1742499452311,0.5419209,84280.0,84279.0,0.1822562]
[1742499452615,0.4232,84280.0,84279.0,0.1822562]
[1742499452804,0.3911,84280.0,84279.0,0.1822562]
[1742499453510,0.5098209,84280.0,84279.0,0.1822562]
[1742499453711,0.4227,84280.0,84279.0,0.1822562]
[1742499454102,0.5414209,84280.0,84279.0,0.1822562]
[1742499458734,0.4227,84280.0,84279.0,0.1822562]
[1742499460210,0.5414209,84280.0,84279.0,0.1822562]
[1742499463427,0.55370657,84280.0,84279.0,0.1822562]
[1742499463923,0.66910657,84280.0,84279.0,0.004178]
[1742499464324,0.1187406,84267.0,84266.0,0.1781065]
[1742499464520,0.4795406,84267.0,84266.0,0.2439065]
[1742499464723,0.5741406,84267.0,84266.0,0.2439065]
[1742499465931,0.5741406,84267.0,84266.0,0.2459065]
[1742499466237,0.5741406,84267.0,84266.0,0.2479065]
[1742499466533,0.6895406,84267.0,84266.0,0.2479065]
[1742499467434,0.6895406,84267.0,84266.0,0.12917]
[1742499468131,0.2374958,84263.0,84262.0,0.1187455]
[1742499468930,0.2374958,84263.0,84262.0,0.1505455]
[1742499469427,0.2374958,84263.0,84262.0,0.1836455]
[1742499469633,0.2374958,84263.0,84262.0,0.1846455]
[1742499473426,0.69118151,84267.0,84266.0,0.1187406]
[1742499473748,0.6895415,84267.0,84266.0,0.1187406]
[1742499473936,0.6895415,84267.0,84266.0,0.1818406]
[1742499474139,0.6895415,84267.0,84266.0,0.0329]
[1742499474631,0.1187448,84263.0,84262.0,0.002]
[1742499475026,0.1828448,84263.0,84262.0,0.002]
[1742499475226,0.1187491,84260.0,84259.0,0.0329]
[1742499475533,0.4795491,84260.0,84259.0,0.0631]
[1742499475837,0.5436491,84260.0,84259.0,0.0631]
[1742499477028,0.6590891,84260.0,84259.0,0.0631]
[1742499477936,0.6590891,84260.0,84259.0,0.1828505]
[1742499478142,0.6590891,84260.0,84259.0,0.1848505]
[1742499478331,0.6590891,84260.0,84259.0,0.003]
[1742499478531,0.6590891,84260.0,84259.0,0.002]
[1742499478733,0.6590891,84260.0,84259.0,0.003]
[1742499479139,0.6590891,84260.0,84259.0,0.0353]
[1742499479737,0.6590891,84260.0,84259.0,0.0662]
[1742499480444,0.6590891,84260.0,84259.0,0.003]
[1742499482645,0.6590891,84260.0,84259.0,0.0355]
[1742499487243,0.1187787,84245.0,84238.0,0.86208]
[1742499487549,0.1187761,84243.0,84242.0,0.178158]
[1742499488249,0.1507761,84243.0,84242.0,0.178158]
[1742499489241,0.1507761,84243.0,84242.0,0.184158]
[1742499490147,0.1507761,84243.0,84242.0,0.190158]
[1742499492349,0.16341103,84243.0,84242.0,0.190158]
[1742499492550,0.1507761,84243.0,84242.0,0.190158]
[1742499493049,0.1187761,84243.0,84242.0,0.190158]
[1742499495548,0.0593874,84243.0,84242.0,0.190158]
[1742499496270,0.1187677,84247.0,84246.0,0.1187674]
[1742499496456,0.000178,84251.0,84248.0,0.118766]
[1742499496753,0.1189403,84251.0,84248.0,0.118766]
[1742499497057,0.4795646,84249.0,84248.0,0.118766]
[1742499498559,0.4795646,84249.0,84248.0,0.122766]
[1742499499058,0.5111646,84249.0,84248.0,0.122766]
[1742499499451,0.5111646,84249.0,84248.0,0.126766]
[1742499499652,0.5436646,84249.0,84248.0,0.008]
[1742499499853,0.5751646,84249.0,84248.0,0.008]
[1742499500052,0.5751646,84249.0,84248.0,0.126766]
[1742499504764,0.5751646,84249.0,84248.0,0.008]
[1742499505062,0.5751646,84249.0,84248.0,0.126766]
[1742499505856,0.1187758,84241.0,84240.0,0.0593885]
[1742499506363,0.1187758,84241.0,84237.0,0.21146755]
[1742499506364,0.1187801,84238.0,84237.0,0.21146755]
[1742499506553,0.1187801,84238.0,84237.0,0.33024905]
[1742499506754,0.1826801,84238.0,84237.0,0.33024905]
[1742499508062,0.19514231,84238.0,84237.0,0.1247815]
[1742499508358,0.31058231,84238.0,84237.0,0.1247815]
[1742499509555,0.31058231,84238.0,84237.0,0.1217815]
[1742499509757,0.31058231,84238.0,84237.0,0.1247815]
[1742499509960,0.31058231,84238.0,84237.0,0.1217815]
[1742499510162,0.31058231,84238.0,84237.0,0.1247815]
[1742499510365,0.31058231,84238.0,84237.0,0.1576815]
[1742499513155,0.0593989,84226.0,84222.0,0.21146755]
[1742499513351,0.1781997,84224.0,84223.0,0.1491998]
[1742499513761,0.0593999,84224.0,84223.0,0.1491998]
[1742499513961,0.59667161,84230.0,84229.0,0.1187928]
[1742499514259,0.47624,84230.0,84229.0,0.1187928]
[1742499514563,0.5950314,84230.0,84229.0,0.1821928]
[1742499515854,0.6270314,84230.0,84229.0,0.1821928]
[1742499516167,0.6270314,84230.0,84229.0,0.2155928]
[1742499516670,0.6270314,84230.0,84229.0,0.2165928]
[1742499516968,0.47624,84230.0,84229.0,0.22908659]
[1742499517166,0.3608,84230.0,84229.0,0.22908659]
[1742499517560,0.4795914,84230.0,84229.0,0.22908659]
[1742499517865,0.4795914,84230.0,84229.0,0.2165928]
[1742499518053,0.3608,84230.0,84229.0,0.2165928]
[1742499520063,0.118791,84231.0,84230.0,0.1187914]
[1742499520264,0.149991,84231.0,84230.0,0.1829914]
[1742499520572,0.3608,84235.0,84234.0,0.1187857]
[1742499521069,0.4795843,84235.0,84234.0,0.1829857]
[1742499521465,0.5422843,84235.0,84234.0,0.1829857]
[1742499522272,0.1814843,84235.0,84234.0,0.1829857]
[1742499522469,0.1814843,84235.0,84234.0,0.1839857]
[1742499522864,0.1814843,84235.0,84234.0,0.1859857]
[1742499524869,0.0627,84235.0,84234.0,0.1859857]
[1742499525061,0.000178,84238.0,84237.0,0.1187815]
[1742499525266,0.000178,84238.0,84237.0,0.19472263]
[1742499525867,0.000178,84238.0,84237.0,0.1823815]
[1742499526071,0.1189581,84238.0,84237.0,0.1823815]
[1742499526265,0.1189581,84238.0,84237.0,0.1833815]
[1742499526477,0.1824581,84238.0,84237.0,0.1833815]
[1742499526774,0.1824581,84238.0,84237.0,0.1843815]
[1742499530467,0.5432581,84238.0,84237.0,0.1843815]
[1742499532174,0.5432581,84238.0,84237.0,0.0348]
[1742499532367,0.0593985,84226.0,84222.0,0.33026415]
[1742499532678,0.4795998,84224.0,84223.0,0.032]
[1742499532866,0.1188012,84223.0,84222.0,0.21146755]
[1742499533064,0.1504012,84223.0,84222.0,0.21146755]
[1742499533264,0.2658012,84223.0,84222.0,0.21146755]
[1742499533471,0.2658012,84223.0,84222.0,0.21546755]
[1742499533798,0.1188083,84218.0,84217.0,0.032]
[1742499534169,0.1830083,84218.0,84217.0,0.032]
[1742499534470,0.1188097,84217.0,84216.0,0.28195673]
[1742499534667,0.5950097,84217.0,84216.0,0.40076783]
[1742499534869,0.6592097,84217.0,84216.0,0.1188111]
[1742499535975,0.6602097,84217.0,84216.0,0.1188111]
[1742499536174,0.6612097,84217.0,84216.0,0.1208111]
[1742499537666,0.6612097,84217.0,84216.0,0.1850111]
[1742499540174,0.6612097,84217.0,84210.0,0.0594096]
[1742499540175,0.1782308,84211.0,84210.0,0.0594096]
[1742499540381,0.1782308,84211.0,84210.0,0.1782292]
[1742499540778,0.0594098,84211.0,84210.0,0.2411292]
[1742499541177,0.002,84217.0,84216.0,0.1188111]
[1742499541477,0.001,84217.0,84216.0,0.1516111]
[1742499542289,0.0312,84218.0,84217.0,0.1188097]
[1742499543085,0.0001781,84219.0,84218.0,0.1188083]
[1742499544176,0.0001781,84219.0,84218.0,0.1799083]
[1742499545279,0.0011781,84219.0,84218.0,0.1809083]
[1742499545871,0.0011781,84219.0,84218.0,0.2963083]
[1742499546073,0.0021781,84219.0,84218.0,0.2963083]
[1742499548578,0.0021781,84219.0,84218.0,0.1809083]
[1742499548792,0.0021781,84219.0,84218.0,0.2963083]
[1742499548985,0.120985,84219.0,84218.0,0.2963083]
[1742499549177,0.0021781,84219.0,84218.0,0.2963083]
[1742499549374,0.0637781,84219.0,84218.0,0.2963083]
[1742499549774,0.182585,84219.0,84218.0,0.1809083]
[1742499550079,0.182585,84219.0,84218.0,0.1506083]
[1742499550281,0.182585,84219.0,84218.0,0.0318]
[1742499550787,0.182585,84219.0,84218.0,0.1506083]
[1742499551685,0.181585,84219.0,84218.0,0.1506083]
[1742499551885,0.180585,84219.0,84218.0,0.1506083]
[1742499552277,0.180585,84219.0,84218.0,0.0318]
[1742499553479,0.180585,84219.0,84218.0,0.1506083]
[1742499554078,0.180585,84219.0,84218.0,0.0318]
[1742499554384,0.180585,84219.0,84218.0,0.001]
[1742499554985,0.1188139,84214.0,84208.0,0.1784067]
[1742499555185,0.178227,84212.0,84211.0,0.1188182]
[1742499555385,0.118821,84209.0,84208.0,0.059589]
[1742499555787,0.181921,84209.0,84208.0,0.059589]
[1742499556485,0.181921,84209.0,84208.0,0.060589]
[1742499556986,0.181921,84209.0,84208.0,0.17941]
[1742499558177,0.19415451,84209.0,84208.0,0.17941]